fUSD/lending_fUSD_20241011
["ID","MTS","AMOUNT","RATE_DAILY","PERIOD"]
[340147317,1728679860805,-500.0,0.00030684,2]
[340147318,1728679860814,-500.0,0.00030684,2]
[340147319,1728679860924,-150.0,0.00030684,2]
[340147320,1728679860935,-500.0,0.00030684,2]
[340147321,1728679860945,-500.0,0.00030684,2]
[340147322,1728679860955,-500.0,0.00030684,2]
[340147323,1728679860965,-199.82,0.00030684,2]
[340147324,1728679860974,-500.0,0.00030684,2]
[340147325,1728679860984,-500.0,0.00030684,2]
[340147326,1728679860994,-547.26777074,0.00030684,2]
[340147327,1728679861004,-500.0,0.00030684,2]
[340147328,1728679861014,-500.0,0.00030684,2]
[340147329,1728679861024,-500.0,0.00030684,2]
[340147330,1728679861034,-500.0,0.00030684,2]
[340147331,1728679861043,-500.0,0.00030684,2]
[340147332,1728679861052,-500.0,0.00030684,2]
[340147333,1728679861062,-500.0,0.00030684,2]
[340147334,1728679861072,-489.67236266,0.00030684,2]
[340147335,1728679861082,-500.0,0.00030684,2]
[340147336,1728679861091,-500.0,0.00030684,2]
[340147337,1728679861101,-500.0,0.00030684,2]
[340147338,1728679861111,-411.04,0.00030684,2]
[340147339,1728679861120,-526.5,0.00030684,2]
[340147340,1728679861130,-500.0,0.00030684,2]
[340147341,1728679861139,-500.0,0.00030684,2]
[340147342,1728679861149,-407.90529669,0.00030684,2]
[340147343,1728679861159,-500.0,0.00030684,2]
[340147344,1728679861168,-500.0,0.00030684,2]
[340147345,1728679861178,-382.47627153,0.00030684,2]
[340147346,1728679861188,-500.0,0.00030684,2]
[340147347,1728679861198,-553.09128035,0.00030684,2]
[340147348,1728679861208,-500.0,0.00030684,2]
[340147349,1728679861217,-506.08,0.00030684,2]
[340147350,1728679861227,-500.0,0.00030684,2]
[340147351,1728679861236,-500.0,0.00030684,2]
[340147352,1728679861246,-500.0,0.00030684,2]
[340147353,1728679861255,-350.92762472,0.00030684,2]
[340147354,1728679861264,-500.0,0.00030684,2]
[340147355,1728679861273,-2441.6,0.00030684,2]
[340147356,1728679861282,-500.0,0.00030684,2]
[340147357,1728679861292,-500.0,0.00030684,2]
[340147358,1728679861301,-500.0,0.00030684,2]
[340147359,1728679861311,-500.0,0.00030684,2]
[340147360,1728679861321,-500.0,0.00030684,2]
[340147361,1728679861330,-500.0,0.00030684,2]
[340147362,1728679861339,-500.0,0.00030684,2]
[340147363,1728679861348,-500.0,0.00030684,2]
[340147364,1728679861357,-500.0,0.00030684,2]
[340147365,1728679861367,-500.0,0.00030684,2]
[340147366,1728679861376,-3000.0,0.000307,2]
[340147367,1728679861386,-207.02750018,0.0003101,2]
[340147368,1728679861395,-30167.52343458,0.0003111,2]
[340147369,1728679861404,-151.0,0.0003111,7]
[340147370,1728679861413,-151.256459,0.0003111,7]
[340147371,1728679861422,-151.321614,0.0003111,7]
[340147372,1728679861431,-151.0,0.0003111,7]
[340147373,1728679861442,-151.0,0.0003111,7]
[340147374,1728679861451,-151.0,0.0003111,7]
[340147375,1728679861461,-151.0,0.0003111,7]
[340147376,1728679861471,-151.0,0.0003111,7]
[340147377,1728679861480,-151.0,0.0003111,7]
[340147378,1728679861490,-151.0,0.0003111,7]
[340147379,1728679861499,-151.0,0.0003111,7]
[340147380,1728679861508,-356.001912,0.0003111,7]
[340147381,1728679861517,-356.001912,0.0003111,7]
[340147382,1728679861527,-151.0,0.0003111,7]
[340147383,1728679861536,-27054.73349771,0.0003121,2]
[340147384,1728679861545,-500.0,0.00031405,120]
[340147385,1728679861555,-151.0,0.00031506,7]
[340147386,1728679861563,-151.0,0.00031506,7]
[340147387,1728679861573,-500.0,0.00031506,2]
[340147388,1728679861582,-500.0,0.00031506,2]
[340147389,1728679861591,-500.0,0.00031506,2]
[340147390,1728679861600,-500.0,0.00031506,2]
[340147391,1728679861609,-500.0,0.00031506,2]
[340147392,1728679861619,-625.826288,0.00031506,2]
[340147393,1728679861628,-500.0,0.00031506,2]
[340147394,1728679861637,-500.0,0.00031506,2]
[340147395,1728679861647,-410.42925466,0.00031506,2]
[340147396,1728679861655,-500.0,0.00031506,2]
[340147397,1728679861665,-500.0,0.00031506,2]
[340147398,1728679861674,-151.0,0.00031506,7]
[340147399,1728679861683,-150.0,0.00031506,2]
[340147400,1728679861693,-227.855447,0.00031506,7]
[340147401,1728679861702,-227.855447,0.00031506,7]
[340147402,1728679861711,-151.0,0.00031506,7]
[340147403,1728679861720,-151.0,0.00031506,7]
[340147404,1728679861730,-500.0,0.00031506,2]
[340147405,1728679861739,-565.88702569,0.00031506,2]
[340147406,1728679861749,-151.0,0.00031506,7]
[340147407,1728679861758,-500.0,0.00031506,2]
[340147408,1728679861768,-151.0,0.00031506,7]
[340147409,1728679861777,-151.0,0.00031506,7]
[340147410,1728679861786,-151.0,0.00031506,7]
[340147411,1728679861795,-500.0,0.00031506,2]
[340147412,1728679861804,-176.238973,0.00031506,7]
[340147413,1728679861813,-176.238973,0.00031506,7]
[340147414,1728679861822,-228.738173,0.00031506,7]
[340147415,1728679861831,-228.738173,0.00031506,7]
[340147416,1728679861843,-500.0,0.00031506,2]
[340147417,1728679861852,-500.0,0.00031506,2]
[340147418,1728679861862,-500.0,0.00031506,2]
[340147419,1728679861871,-500.0,0.00031506,2]
[340147420,1728679861880,-494.2,0.00031506,2]
[340147421,1728679861889,-500.0,0.00031506,2]
[340147422,1728679861899,-500.0,0.00031506,2]
[340147423,1728679861908,-500.0,0.00031506,2]
[340147424,1728679861919,-500.0,0.00031506,2]
[340147425,1728679861929,-500.0,0.00031506,2]
[340147426,1728679861939,-500.0,0.00031506,2]
[340147427,1728679861948,-151.0,0.00031506,7]
[340147428,1728679861957,-151.0,0.00031506,7]
[340147429,1728679861967,-151.0,0.00031506,7]
[340147430,1728679861975,-151.0,0.00031506,7]
[340147431,1728679861984,-241.95997,0.00031506,7]
[340147432,1728679861994,-526.5,0.00031506,2]
[340147433,1728679862003,-151.0,0.00031506,7]
[340147434,1728679862012,-225.64618,0.00031506,7]
[340147435,1728679862021,-151.0,0.00031506,7]
[340147436,1728679862030,-500.0,0.00031506,2]
[340147437,1728679862040,-500.0,0.00031506,2]
[340147438,1728679862049,-500.0,0.00031506,2]
[340147439,1728679862059,-500.0,0.00031506,2]
[340147440,1728679862067,-216.66603964,0.00031506,2]
[340147441,1728679862077,-500.0,0.00031506,2]
[340147442,1728679862086,-506.08,0.00031506,2]
[340147443,1728679862095,-500.0,0.00031506,2]
[340147444,1728679862104,-433.57624835,0.00031506,2]
[340147445,1728679862113,-500.0,0.00031506,2]
[340147446,1728679862123,-343.58,0.00031506,2]
[340147447,1728679862132,-2441.6,0.00031506,2]
[340147448,1728679862141,-500.0,0.00031506,2]
[340147449,1728679862151,-500.0,0.00031506,2]
[340147450,1728679862160,-500.0,0.00031506,2]
[340147451,1728679862170,-500.0,0.00031506,2]
[340147452,1728679862181,-500.0,0.00031506,2]
[340147453,1728679862192,-500.0,0.00031506,2]
[340147454,1728679862201,-500.0,0.00031506,2]
[340147455,1728679862211,-500.0,0.00031506,2]
[340147456,1728679862220,-500.0,0.00031506,2]
[340147457,1728679862230,-500.0,0.00031506,2]
[340147458,1728679862239,-403.89,0.00031965,2]
[340147459,1728679862249,-1100.0,0.00032,2]
[340147460,1728679862258,-500.0,0.00032328,2]
[340147461,1728679862268,-634.04,0.00032328,2]
[340147462,1728679862277,-500.0,0.00032328,2]
[340147463,1728679862286,-500.0,0.00032328,2]
[340147464,1728679862296,-500.0,0.00032328,2]
[340147465,1728679862305,-500.0,0.00032328,2]
[340147466,1728679862315,-500.0,0.00032328,2]
[340147467,1728679862326,-500.0,0.00032328,2]
[340147468,1728679862338,-500.0,0.00032328,2]
[340147469,1728679862349,-150.0,0.00032328,2]
[340147470,1728679862359,-500.0,0.00032328,2]
[340147471,1728679862368,-500.0,0.00032328,2]
[340147472,1728679862378,-500.0,0.00032328,2]
[340147473,1728679862388,-500.0,0.00032328,2]
[340147474,1728679862399,-500.0,0.00032328,2]
[340147475,1728679862409,-500.0,0.00032328,2]
[340147476,1728679862419,-500.0,0.00032328,2]
[340147477,1728679862428,-151.0,0.00032328,7]
[340147478,1728679862439,-247.625796,0.00032328,7]
[340147479,1728679862448,-151.0,0.00032328,7]
[340147480,1728679862457,-151.0,0.00032328,7]
[340147481,1728679862466,-500.0,0.00032328,2]
[340147482,1728679862476,-500.0,0.00032328,2]
[340147483,1728679862485,-151.0,0.00032328,7]
[340147484,1728679862495,-151.0,0.00032328,7]
[340147485,1728679862505,-500.0,0.00032328,2]
[340147486,1728679862515,-500.0,0.00032328,2]
[340147487,1728679862524,-301.3,0.00032328,2]
[340147488,1728679862533,-500.0,0.00032328,2]
[340147489,1728679862543,-526.5,0.00032328,2]
[340147490,1728679862552,-500.0,0.00032328,2]
[340147491,1728679862562,-500.0,0.00032328,2]
[340147492,1728679862571,-331.225246,0.00032328,7]
[340147493,1728679862580,-331.225246,0.00032328,7]
[340147494,1728679862590,-500.0,0.00032328,2]
[340147495,1728679862599,-500.0,0.00032328,2]
[340147496,1728679862609,-500.0,0.00032328,2]
[340147497,1728679862619,-306.97814,0.00032328,7]
[340147498,1728679862628,-306.97814,0.00032328,7]
[340147499,1728679862637,-506.08,0.00032328,2]
[340147500,1728679862646,-500.0,0.00032328,2]
[340147501,1728679862655,-151.0,0.00032328,7]
[340147502,1728679862665,-151.0,0.00032328,7]
[340147503,1728679862674,-151.0,0.00032328,7]
[340147504,1728679862683,-926.335156,0.00032328,7]
[340147505,1728679862693,-151.0,0.00032328,7]
[340147506,1728679862703,-320.292292,0.00032328,7]
[340147507,1728679862712,-500.0,0.00032328,2]
[340147508,1728679862721,-926.335156,0.00032328,7]
[340147509,1728679862731,-320.292292,0.00032328,7]
[340147510,1728679862740,-151.0,0.00032328,7]
[340147511,1728679862750,-2441.6,0.00032328,2]
[340147512,1728679862759,-500.0,0.00032328,2]
[340147513,1728679862769,-500.0,0.00032328,2]
[340147514,1728679862778,-500.0,0.00032328,2]
[340147515,1728679862788,-500.0,0.00032328,2]
[340147516,1728679862797,-500.0,0.00032328,2]
[340147517,1728679862806,-500.0,0.00032328,2]
[340147518,1728679862815,-500.0,0.00032328,2]
[340147519,1728679862824,-287.82958182,0.00032328,2]
[340147520,1728679862833,-500.0,0.00032328,2]
[340147521,1728679862842,-500.0,0.00032328,2]
[340147522,1728679862851,-2013.42212511,0.00032347,120]
[340147523,1728679862862,-396.09886361,0.00032347,120]
[340147524,1728679862871,-5567.16349419,0.00032347,120]
[340147525,1728679862881,-500.0,0.00032347,2]
[340147526,1728679862891,-621.5812928,0.00032347,3]
[340147527,1728679862900,-1500.0,0.00032876,2]
[340147528,1728679862909,-331.38776215,0.000329,2]
[340147529,1728679862920,-1500.0,0.000329,2]
[340147530,1728679863023,-163.0,0.000329,2]
[340147531,1728679863032,-151.0,0.000329,7]
[340147532,1728679863042,-3304.54680566,0.000329,2]
[340147533,1728679863051,-1510.48,0.00032956,2]
[340147534,1728679863061,-351.043865,0.00033,14]
[340147535,1728679863070,-7881.525194,0.00033127,2]
[340147536,1728679863079,-4506.1192572,0.00033127,2]
[340147537,1728679863088,-579.7662343,0.00033127,2]
[340147538,1728679863098,-500.0,0.0003315,2]
[340147539,1728679863107,-340.84005253,0.0003315,2]
[340147540,1728679863117,-500.0,0.0003315,2]
[340147541,1728679863127,-500.0,0.0003315,2]
[340147542,1728679863136,-471.68486035,0.0003315,2]
[340147543,1728679863146,-500.0,0.0003315,2]
[340147544,1728679863155,-500.0,0.0003315,2]
[340147545,1728679863164,-150.0,0.0003315,2]
[340147546,1728679863173,-456.68,0.0003315,2]
[340147547,1728679863182,-155.71839969,0.0003315,2]
[340147548,1728679863192,-500.0,0.0003315,2]
[340147549,1728679863201,-151.0,0.0003315,7]
[340147550,1728679863211,-151.0,0.0003315,7]
[340147551,1728679863220,-151.0,0.0003315,7]
[340147552,1728679863230,-151.0,0.0003315,7]
[340147553,1728679863239,-500.0,0.0003315,2]
[340147554,1728679863248,-151.0,0.0003315,7]
[340147555,1728679863257,-151.0,0.0003315,7]
[340147556,1728679863266,-500.0,0.0003315,2]
[340147557,1728679863276,-204.38167201,0.0003315,2]
[340147558,1728679863285,-308.67029346,0.0003315,2]
[340147559,1728679863294,-545.56015546,0.0003315,2]
[340147560,1728679863304,-500.0,0.0003315,2]
[340147561,1728679863313,-500.0,0.0003315,2]
[340147562,1728679863322,-649.94255133,0.0003315,2]
[340147563,1728679863331,-500.0,0.0003315,2]
[340147564,1728679863340,-526.5,0.0003315,2]
[340147565,1728679863349,-489.72046717,0.0003315,2]
[340147566,1728679863359,-500.0,0.0003315,2]
[340147567,1728679863368,-500.0,0.0003315,2]
[340147568,1728679863378,-500.0,0.0003315,2]
[340147569,1728679863388,-500.0,0.0003315,2]
[340147570,1728679863397,-506.08,0.0003315,2]
[340147571,1728679863407,-500.0,0.0003315,2]
[340147572,1728679863416,-500.0,0.0003315,2]
[340147573,1728679863426,-2441.6,0.0003315,2]
[340147574,1728679863435,-500.0,0.0003315,2]
[340147575,1728679863456,-500.0,0.0003315,2]
[340147576,1728679863466,-500.0,0.0003315,2]
[340147577,1728679863476,-500.0,0.0003315,2]
[340147578,1728679863485,-500.0,0.0003315,2]
[340147579,1728679863495,-500.0,0.0003315,2]
[340147580,1728679863504,-500.0,0.0003315,2]
[340147581,1728679863514,-500.0,0.0003315,2]
[340147582,1728679863523,-500.0,0.0003315,2]
[340147583,1728679863533,-362.41,0.00033151,120]
[340147584,1728679863543,-3000.0,0.000334,2]
[340147585,1728679863552,-505.51082235,0.000336,30]
[340147586,1728679863562,-500.0,0.00033654,120]
[340147587,1728679863571,-150.0,0.00033778,2]
[340147588,1728679863581,-1784.81888976,0.00033903,2]
[340147589,1728679863675,-1743.96203131,0.00033903,2]
[340147590,1728679863691,-541.41765658,0.00033903,2]
[340147591,1728679863703,-11809.42168032,0.00033903,2]
[340147592,1728679863714,-530.86535505,0.00033903,2]
[340147593,1728679863725,-1048.582763,0.00033903,2]
[340147594,1728679863736,-846.52210567,0.00033903,2]
[340147595,1728679863747,-1941.83956699,0.00033903,2]
[340147596,1728679863758,-12509.82073322,0.00033903,2]
[340147597,1728679863768,-26136.4256619,0.00033903,2]
[340147598,1728679863778,-19576.7450885,0.00033926,2]
[340147599,1728679863787,-500.0,0.00033972,2]
[340147600,1728679863796,-500.0,0.00033972,2]
[340147601,1728679863805,-500.0,0.00033972,2]
[340147602,1728679863815,-616.22994432,0.00033972,2]
[340147603,1728679863824,-500.0,0.00033972,2]
[340147604,1728679863833,-150.0,0.00033972,2]
[340147605,1728679863843,-500.0,0.00033972,2]
[340147606,1728679863852,-500.0,0.00033972,2]
[340147607,1728679863862,-500.0,0.00033972,2]
[340147608,1728679863871,-500.0,0.00033972,2]
[340147609,1728679863880,-500.0,0.00033972,2]
[340147610,1728679863890,-500.0,0.00033972,2]
[340147611,1728679863899,-526.5,0.00033972,2]
[340147612,1728679863908,-500.0,0.00033972,2]
[340147613,1728679863918,-500.0,0.00033972,2]
[340147614,1728679863927,-501.14,0.00033972,2]
[340147615,1728679863939,-500.0,0.00033972,2]
[340147616,1728679863948,-506.08,0.00033972,2]
[340147617,1728679863958,-500.0,0.00033972,2]
[340147618,1728679863966,-570.75479232,0.00033972,2]
[340147619,1728679863975,-2441.6,0.00033972,2]
[340147620,1728679863984,-500.0,0.00033972,2]
[340147621,1728679863993,-500.0,0.00033972,2]
[340147622,1728679864003,-500.0,0.00033972,2]
[340147623,1728679864013,-500.0,0.00033972,2]
[340147624,1728679864022,-500.0,0.00033972,2]
[340147625,1728679864031,-500.0,0.00033972,2]
[340147626,1728679864040,-500.0,0.00033972,2]
[340147627,1728679864050,-500.0,0.00033972,2]
[340147628,1728679864059,-583.25575306,0.00033972,2]
[340147629,1728679864068,-1150.0,0.00034,2]
[340147630,1728679864077,-403.89,0.00034229,2]
[340147631,1728679864087,-150.0,0.00034605,2]
[340147632,1728679864096,-500.0,0.00034794,2]
[340147633,1728679864105,-274.97313257,0.00034794,2]
[340147634,1728679864114,-500.0,0.00034794,2]
[340147635,1728679864123,-500.0,0.00034794,2]
[340147636,1728679864133,-150.0,0.00034794,2]
[340147637,1728679864142,-393.19006558,0.00034794,2]
[340147638,1728679864152,-500.0,0.00034794,2]
[340147639,1728679864162,-500.0,0.00034794,2]
[340147640,1728679864172,-500.0,0.00034794,2]
[340147641,1728679864181,-500.0,0.00034794,2]
[340147642,1728679864191,-500.0,0.00034794,2]
[340147643,1728679864200,-526.5,0.00034794,2]
[340147644,1728679864210,-500.0,0.00034794,2]
[340147645,1728679864219,-500.0,0.00034794,2]
[340147646,1728679864228,-588.18375629,0.00034794,2]
[340147647,1728679864237,-506.08,0.00034794,2]
[340147648,1728679864247,-500.0,0.00034794,2]
[340147649,1728679864256,-2441.6,0.00034794,2]
[340147650,1728679864265,-500.0,0.00034794,2]
[340147651,1728679864274,-500.0,0.00034794,2]
[340147652,1728679864283,-500.0,0.00034794,2]
[340147653,1728679864292,-500.0,0.00034794,2]
[340147654,1728679864302,-500.0,0.00034794,2]
[340147655,1728679864311,-500.0,0.00034794,2]
[340147656,1728679864320,-500.0,0.00034794,2]
[340147657,1728679864331,-500.0,0.00034794,2]
[340147658,1728679864341,-174.02001068,0.00035,120]
[340147659,1728679864351,-500.0,0.00035616,2]
[340147660,1728679864360,-1875.0,0.00035616,2]
[340147661,1728679864371,-500.0,0.00035616,2]
[340147662,1728679864380,-305.60932379,0.00035616,2]
[340147663,1728679864389,-242.62135681,0.00035616,2]
[340147664,1728679864399,-500.0,0.00035616,2]
[340147665,1728679864411,-500.0,0.00035616,2]
[340147666,1728679864420,-500.0,0.00035616,2]
[340147667,1728679864429,-500.0,0.00035616,2]
[340147668,1728679864439,-500.0,0.00035616,2]
[340147669,1728679864449,-526.5,0.00035616,2]
[340147670,1728679864459,-500.0,0.00035616,2]
[340147671,1728679864468,-500.0,0.00035616,2]
[340147672,1728679864477,-506.08,0.00035616,2]
[340147673,1728679864486,-500.0,0.00035616,2]
[340147674,1728679864496,-2441.6,0.00035616,2]
[340147675,1728679864506,-500.0,0.00035616,2]
[340147676,1728679864514,-500.0,0.00035616,2]
[340147677,1728679864523,-500.0,0.00035616,2]
[340147678,1728679864533,-500.0,0.00035616,2]
[340147679,1728679864542,-500.0,0.00035616,2]
[340147680,1728679864551,-627.09614593,0.00035616,2]
[340147681,1728679864561,-500.0,0.00035616,2]
[340147682,1728679864570,-2001.234296,0.00035904,120]
[340147683,1728679864580,-500.0,0.00035904,120]
[340147684,1728679864590,-200.0,0.00035904,120]
[340147685,1728679864599,-628.95776093,0.00036,2]
[340147686,1728679864608,-1200.0,0.00036,2]
[340147687,1728679864618,-159.66,0.00036164,2]
[340147688,1728679864627,-3000.0,0.000362,2]
[340147689,1728679864636,-500.0,0.00036438,2]
[340147690,1728679864646,-500.0,0.00036438,2]
[340147691,1728679864655,-500.0,0.00036438,2]
[340147692,1728679864664,-500.0,0.00036438,2]
[340147693,1728679864674,-500.0,0.00036438,2]
[340147694,1728679864683,-497.36001347,0.00036438,2]
[340147695,1728679864693,-500.0,0.00036438,2]
[340147696,1728679864702,-526.5,0.00036438,2]
[340147697,1728679864712,-500.0,0.00036438,2]
[340147698,1728679864721,-500.0,0.00036438,2]
[340147699,1728679864730,-506.08,0.00036438,2]
[340147700,1728679864739,-500.0,0.00036438,2]
[340147701,1728679864749,-2441.6,0.00036438,2]
[340147702,1728679864758,-500.0,0.00036438,2]
[340147703,1728679864767,-500.0,0.00036438,2]
[340147704,1728679864869,-522.58340971,0.00036438,2]
[340147705,1728679864878,-500.0,0.00036438,2]
[340147706,1728679864887,-596.6869498,0.00036438,2]
[340147707,1728679864897,-500.0,0.00036438,2]
[340147708,1728679864906,-403.89,0.00036493,2]
[340147709,1728679864915,-150.0,0.00036689,2]
[340147710,1728679864925,-2410.0,0.00037,117]
[340147711,1728679864934,-500.0,0.0003726,2]
[340147712,1728679864944,-500.0,0.0003726,2]
[340147713,1728679864954,-171.51524943,0.0003726,2]
[340147714,1728679864963,-500.0,0.0003726,2]
[340147715,1728679864972,-500.0,0.0003726,2]
[340147716,1728679864982,-500.0,0.0003726,2]
[340147717,1728679864991,-526.5,0.0003726,2]
[340147718,1728679864999,-500.0,0.0003726,2]
[340147719,1728679865008,-500.0,0.0003726,2]
[340147720,1728679865017,-506.08,0.0003726,2]
[340147721,1728679865027,-500.0,0.0003726,2]
[340147722,1728679865036,-2441.6,0.0003726,2]
[340147723,1728679865045,-500.0,0.0003726,2]
[340147724,1728679865055,-500.0,0.0003726,2]
[340147725,1728679865065,-397.45075494,0.0003726,2]
[340147726,1728679865074,-500.0,0.0003726,2]
[340147727,1728679865084,-500.0,0.00037516,120]
[340147728,1728679865093,-150.0,0.00037797,7]
[340147729,1728679865102,-150.0,0.00037797,7]
[340147730,1728679865112,-150.0,0.00037797,7]
[340147731,1728679865121,-272.97343219,0.00037797,7]
[340147732,1728679865131,-150.0,0.00037797,7]
[340147733,1728679865141,-171.94694556,0.00037797,7]
[340147734,1728679865151,-150.0,0.00037797,7]
[340147735,1728679865159,-795.89098881,0.00037905,5]
[340147736,1728679865168,-150.0,0.00037947,7]
[340147737,1728679865178,-2013.42212511,0.00038,120]
[340147738,1728679865187,-5567.16349419,0.00038,120]
[340147739,1728679865197,-500.0,0.00038082,2]
[340147740,1728679865207,-500.0,0.00038082,2]
[340147741,1728679865216,-500.0,0.00038082,2]
[340147742,1728679865226,-500.0,0.00038082,2]
[340147743,1728679865235,-500.0,0.00038082,2]
[340147744,1728679865244,-526.5,0.00038082,2]
[340147745,1728679865254,-500.0,0.00038082,2]
[340147746,1728679865263,-500.0,0.00038082,2]
[340147747,1728679865272,-506.08,0.00038082,2]
[340147748,1728679865282,-500.0,0.00038082,2]
[340147749,1728679865291,-2441.6,0.00038082,2]
[340147750,1728679865300,-500.0,0.00038082,2]
[340147751,1728679865309,-500.0,0.00038082,2]
[340147752,1728679865319,-500.0,0.00038082,2]
[340147753,1728679865328,-9.96524456,0.00038097,7]
[340147754,1728679865340,-140.03475544,0.00038097,7]
[340147755,1728679865350,-150.0,0.00038179,7]
[340147756,1728679865359,-50.59818767,0.00038179,7]
[340147757,1728679865370,-99.40181233,0.00038179,7]
[340147758,1728679865381,-150.0,0.00038247,7]
[340147759,1728679865390,-738.93253559,0.00038356,2]
[340147760,1728679865402,-1511.06746441,0.00038356,2]
[340147761,1728679865411,-500.0,0.00038356,2]
[340147762,1728679865420,-512.43735149,0.00038356,2]
[340147763,1728679865429,-276.22976753,0.0003836,120]
[340147764,1728679865439,-276.22976753,0.0003836,120]
[340147765,1728679865448,-276.22976753,0.0003836,120]
[340147766,1728679865458,-276.22976753,0.0003836,120]
[340147767,1728679865469,-276.22976753,0.0003836,120]
[340147768,1728679865479,-276.22976753,0.0003836,120]
[340147769,1728679865488,-276.22976753,0.0003836,120]
[340147770,1728679865497,-276.22976753,0.0003836,120]
[340147771,1728679865506,-276.22976753,0.0003836,120]
[340147772,1728679865516,-276.22976753,0.0003836,120]
[340147773,1728679865526,-276.22976753,0.0003836,120]
[340147774,1728679865535,-276.22976753,0.0003836,120]
[340147775,1728679865544,-276.22976753,0.0003836,120]
[340147776,1728679865554,-276.22976753,0.0003836,120]
[340147777,1728679865563,-276.22976753,0.0003836,120]
[340147778,1728679865572,-276.22976753,0.0003836,120]
[340147779,1728679865581,-276.22976753,0.0003836,120]
[340147780,1728679865590,-276.22976753,0.0003836,120]
[340147781,1728679865599,-276.22976753,0.0003836,120]
[340147782,1728679865608,-276.72,0.0003836,120]
[340147783,1728679865617,-411.4194834,0.0003836,120]
[340147784,1728679865627,-411.4194834,0.0003836,120]
[340147785,1728679865636,-411.4194834,0.0003836,120]
[340147786,1728679865645,-411.4194834,0.0003836,120]
[340147787,1728679865654,-411.4194834,0.0003836,120]
[340147788,1728679865664,-411.4194834,0.0003836,120]
[340147789,1728679865673,-411.4194834,0.0003836,120]
[340147790,1728679865682,-411.4194834,0.0003836,120]
[340147791,1728679865692,-411.4194834,0.0003836,120]
[340147792,1728679865701,-411.4194834,0.0003836,120]
[340147793,1728679865711,-411.4194834,0.0003836,120]
[340147794,1728679865720,-411.4194834,0.0003836,120]
[340147795,1728679865729,-411.4194834,0.0003836,120]
[340147796,1728679865738,-411.4194834,0.0003836,120]
[340147797,1728679865747,-411.4194834,0.0003836,120]
[340147798,1728679865756,-411.4194834,0.0003836,120]
[340147799,1728679865764,-411.4194834,0.0003836,120]
[340147800,1728679865774,-411.4194834,0.0003836,120]
[340147801,1728679865783,-411.4194834,0.0003836,120]
[340147802,1728679865792,-411.91,0.0003836,120]
[340147803,1728679865801,-629.99876534,0.0003836,120]
[340147804,1728679865810,-629.99876534,0.0003836,120]
[340147805,1728679865819,-629.99876534,0.0003836,120]
[340147806,1728679865828,-629.99876534,0.0003836,120]
[340147807,1728679865837,-629.99876534,0.0003836,120]
[340147808,1728679865847,-139.01155311,0.0003836,120]
[340147809,1728679865859,-490.98721223,0.0003836,120]
[340147810,1728679865868,-629.99876534,0.0003836,120]
[340147811,1728679865877,-629.99876534,0.0003836,120]
[340147812,1728679865886,-629.99876534,0.0003836,120]
[340147813,1728679865896,-629.99876534,0.0003836,120]
[340147814,1728679865905,-629.99876534,0.0003836,120]
[340147815,1728679865915,-629.99876534,0.0003836,120]
[340147816,1728679865923,-629.99876534,0.0003836,120]